Workbook

Sheet Bramfischer - Fire
B2: ITEM NO | C2: DESCRIPTION | D2: UNIT | E2: QTY | F2: RATE | G2: AMOUNT
C3: SCHEDULE 1 :
B4: 1.000 | C4: PRELIMINARY & GENERAL ITEMS
B7: =B4+0.001 -> 1.001 | C7: Clearance of Rubbish | D7: Item | E7: 1
B9: =B7+0.001 -> 1.002 | C9: Retention Interest | D9: Item | E9: 1
B11: =B9+0.001 -> 1.003 | C11: Site Establishment & Clearance | D11: Item | E11: 1
B13: =B11+0.001 -> 1.004 | C13: Scaffolding | D13: Item | E13: 1
B15: =B13+0.001 -> 1.005 | C15: Tests and Inspections | D15: Item | E15: 1
B17: =B15+0.001 -> 1.006 | C17: Preparation of Operating and Maintenance Manuals | D17: Item | E17: 3
B19: =B17+0.001 -> 1.007 | C19: As-built Drawings | D19: Item | E19: 1
B21: =B19+0.001 -> 1.008 | C21: 12 Months Guarantee and Maintenance | D21: Item | E21: 1
B23: =B21+0.001 -> 1.009 | C23: Programming of the Work | D23: Item | E23: 1
B25: =B23+0.001 -> 1.010 | C25: Testing, Balancing & Commissioning | D25: Item | E25: 1
B27: =B25+0.001 -> 1.011 | C27: Equipment Submissions | D27: Item | E27: 1
B29: =B27+0.001 -> 1.012 | C29: Contract Drawings | D29: Item | E29: 1
B31: =B29+0.001 -> 1.013 | C31: Equipment Labels | D31: Item | E31: 1
B33: =B31+0.001 -> 1.014 | C33: Water & Power for commissioning If JBCC Document | D33: Item | E33: 1
C34: Any additional items of preliminary nature that the tenderer may wish to add to comply with requirements of the specification and/or bill of quantities.
C35: (To be listed hereunder by the Tenderer)
B36: i | D36: Item | E36: 1
B37: ii | D37: Item | E37: 1
C38: Sub-contractors to be present at all site meeting at least on a two weekly basis and more frequently as buildings become ready/ available for installations.
C67: CARRIED TO FINAL SUMMARY | E67: R
C68: =C3 -> SCHEDULE 1 :
C69: =C4 -> PRELIMINARY & GENERAL ITEMS
B72: ITEM NO | C72: DESCRIPTION | D72: UNIT | E72: QTY | F72: RATE | G72: AMOUNT
C73: SCHEDULE 2:
B74: 2.000 | C74: FIRE DETECTION INSTALLATIONS
C76: Wired Fire Detection Installations
C77: The Fire detection shall comply with SANS10400 and SANS 10139, for public buildings. The fire detection system shall be provided throughout the facilities (System catagory L1 and P) and be an addressable fire detection system. | G77: Note
C78: Systems in explosive gas or dust atmosphere shall comply with SANS 60079-14 and EN 61241-17 | G78: Note
C79: Standby Battery supplies for any part of the system shall be capable of maintaining the system in normal operation for at least 24hr, after which there shall be sufficient capacity to operate all sounders in evacuation mode for at least 30 min. | G79: Note
C81: New Fire Detection Panel at The Apron Office
B82: =B74+0.001 -> 2.001 | C82: 4 Loop Analogue Control Panel, 230V, EN54 approved [ZP2-4L] | D82: No | E82: 1 | G82: =E82*F82 -> 0
B84: =B82+0.001 -> 2.002 | C84: Battery 12V 26 AH | D84: No | E84: 1 | G84: =E84*F84 -> 0
B86: =B84+0.001 -> 2.003 | C86: ZP2 accessory plate and on board printer | D86: No | E86: 1 | G86: =E86*F86 -> 0
B88: =B86+0.001 -> 2.004 | C88: ZPAB-RS232 board | D88: No | E88: 1 | G88: =E88*F88 -> 0
B90: =B88+0.001 -> 2.005 | C90: Class A network loop card [ZP2AB-NLM2] | D90: No | E90: 1 | G90: =E90*F90 -> 0
B92: =B90+0.001 -> 2.006 | C92: Eight programmable output card [ZP2AB-RL8] | D92: No | E92: 1 | G92: =E92*F92 -> 0
B94: =B92+0.001 -> 2.007 | C94: Network card [ZP2AB-NET1] | D94: No | E94: 1 | G94: =E94*F94 -> 0
C96: The Service of Existing Panels, 24V (LCD & controls), 230V, at surrounding buildings:
B98: =B94+0.001 -> 2.008 | C98: Service of existing Panels | D98: No | E98: 9 | G98: =E98*F98 -> 0
B100: =B98+0.001 -> 2.009 | C100: Boxed power supply, 24VDC 1A | D100: No | E100: Incl
B102: =B100+0.001 -> 2.010 | C102: Panel driver board | D102: No | E102: Incl
B104: =B102+0.001 -> 2.011 | C104: Two core twisted cable 2m that is shielded and screened for RS485 communication daisy chained and teed off between the control panels. Peer-to-peer network. | D104: No | E104: =E98+E82 -> 10 | G104: =E104*F104 -> 0
C106: Service & Repair Including supply and installation of new Addressable Loop Devices
B108: =B104+0.001 -> 2.012 | C108: Ceiling : Optical sensor [ZP730-2] c/w surface mounting sensor base [ZP7-SB1] | D108: No | E108: =102+68+3+13+12+13+9+12+8+1+3 -> 244 | G108: =E108*F108 -> 0
B110: =B108+0.001 -> 2.013 | C110: Void : Optical sensor [ZP730-2] c/w surface mounting sensor base [ZP7-SB1] | D110: No | E110: =102+68 -> 170 | G110: =E110*F110 -> 0
B112: =B110+0.001 -> 2.014 | C112: Ceiling : Optical sensor [ZP730-2] c/w surface mounting isolator sensor base [ZP7-IB] | D112: No | E112: 120 | G112: =E112*F112 -> 0
B114: =B112+0.001 -> 2.015 | C114: Void : Optical sensor [ZP730-2] c/w surface mounting isolator sensor base [ZP7-IB] | D114: No | E114: 90 | G114: =E114*F114 -> 0
B116: =B114+0.001 -> 2.016 | C116: Combination Optical & Heat sensor [ZP732-2] c/w surface mounting sensor base [ZP7-SB1] | D116: No | E116: 40 | G116: =E116*F116 -> 0
C123: Carried Forward to Next Page
B126: ITEM NO | C126: DESCRIPTION | D126: UNIT | E126: QTY | F126: RATE | G126: AMOUNT
C127: SCHEDULE 2:
C128: =C74 -> FIRE DETECTION INSTALLATIONS
C130: Brought Forward from Previous Page
B132: =B116+0.001 -> 2.017 | C132: Omnidirectional Sounder beacon (50dB) and flashing light (strobe) [ZP755HAV-2W - white] c/w surface mounting sensor base [ZP7-SB1] | D132: No | E132: =14+9+2+4+2+2+2+4+4+1 -> 44 | G132: =E132*F132 -> 0
B134: =B132+0.001 -> 2.018 | C134: Optical sensor [ZP755B-2] c/w sounder base [ZP7-SB1] | D134: No | E134: 25 | G134: =E134*F134 -> 0
B136: =B134+0.001 -> 2.019 | C136: Beacon [ZP755V] c/w base [ZP7-SB1] | D136: No | E136: 25 | G136: =E136*F136 -> 0
B138: =B136+0.001 -> 2.020 | C138: Heat sensor [ZP720-3] c/w surface mounting sensor base [ZP7-SB1] | D138: No | E138: 16 | G138: =E138*F138 -> 0
B140: =B138+0.001 -> 2.021 | C140: Omnidirectional Sounder beacon, red (102 dBA) [ZP755HAV- 2R] c/w base [ZP7-SB1] | D140: No | E140: 20 | G140: =E140*F140 -> 0
B142: =B140+0.001 -> 2.022 | C142: Heat-rise detector with base [ZP7-SB1] | D142: No | E142: 8 | G142: =E142*F142 -> 0
B144: =B142+0.001 -> 2.023 | C144: The supply and installation of Manual Call point mounted 1400mm AFFL at indicated positions c/w EN54 marking [ZP785-3] - use with DMN787 | D144: No | E144: =4+2+4+1+1+2+1 -> 15 | G144: =E144*F144 -> 0
B146: =B144+0.001 -> 2.024 | C146: Mini interface unit [A45E-2] and mini relay unit [A50E-2] with Surface box to suite (IP66, 2 single or 1 double) [SMB-DIN1] | D146: No | E146: 9 | G146: =E146*F146 -> 0
B148: =B146+0.001 -> 2.025 | C148: Supply and Installation of Panel Loop and Networking wiring, PVC conduit and cable trunking (P8000 with covers and hangers) as per Tender drawing reticulation.
C149: Panel 1 (Ceiling & Void): PH120 Fire Resistant Cable 2 Core, 1.5mm
B151: =B148+0.001 -> 2.026 | C151: P8000 cable trunking (WxH: 76 x 76mm); hangers c/w nuts and bolts, bends, tees etc. | D151: m | E151: =250+10+50+16+25+15+50+50+6+250 -> 722 | G151: =E151*F151 -> 0
B153: =B151+0.001 -> 2.027 | C153: 25mm PVC conduiting c/w hangers, saddles, screws, nuts and bolts, bends, tees etc. | D153: m | E153: =3*(E138+E132+E110+E108) -> 1422 | G153: =E153*F153 -> 0
B155: =B153+0.001 -> 2.028 | C155: The supply and installation of MAESTRO Software and Remote Diagnostics function via IP
B157: =B155+0.001 -> 2.029 | C157: MAESTRO System complete with ZP2AB-MD3 Modem for remote diagnostics into Control Panels at specified location. | D157: No | E157: 1 | G157: =E157*F157 -> 0
B159: =B157+0.001 -> 2.030 | C159: RS232 Port for port for MAESTRO, Pager, or Modem control lines into Control Panel at specified location. | D159: No | E159: 1 | G159: =E159*F159 -> 0
B161: =B159+0.001 -> 2.031 | C161: RS232 cable to connect PC to Control Panel 1 at specified location. | D161: No | E161: 1 | G161: =E161*F161 -> 0
C163: Direct Link with Fire Services Department
B165: =B161+0.001 -> 2.032 | C165: REMRAD or Similar system complete with all the frequency license fees and all related costs. | D165: No | E165: 1 | G165: =E165*F165 -> 0
C167: Associated Cables and Reticulation Accessories
B169: =B165+0.001 -> 2.033 | C169: Supply and Installation of loop PH30 Fire Resistant Cable 2 Core, 1.5mm wiring and cable trunking (P8000 with covers and hangers) | D169: m | E169: =(2*E153)+(2*E151) -> 4288 | G169: =E169*F169 -> 0
C172: Carried Forward to Summary Page | G172: =G130+SUM(G132:G170) -> 0
B173: ITEM NO | C173: DESCRIPTION | D173: UNIT | E173: QTY | F173: RATE | G173: AMOUNT
C174: SCHEDULE 3:
B175: 3.000 | C175: SERVICE & REPAIR INERT FIRE SUPPRESSION SYSTEMS
B177: =B175+0.001 -> 3.001 | C177: Service & Repair CTB IT & Server Rooms Fire Suppression Systems (Inergen & FM200), including piping, nozzles, extinguishant release panel, etc. | D177: No | E177: 11 | G177: =E177*F177 -> 0
B179: =B177+0.001 -> 3.002 | C179: Service & Repair Main Electrical Substation & Transformer Rooms Fire Suppression Systems (Inergen & FM200), including piping, nozzles, extinguishant release panel, etc. | D179: No | E179: 1 | G179: =E179*F179 -> 0
B181: =B179+0.001 -> 3.003 | C181: Service & Repair Mechanical & Electrical Offices IT & Server Rooms Fire Suppression Systems (Inergen & FM200), including piping, nozzles, extinguishant release panel, etc. | D181: No | E181: 2 | G181: =E181*F181 -> 0
C183: NEW INERT FIRE SUPPRESSION SYSTEMS
B185: =B181+0.001 -> 3.004 | C185: Supply & Install new system for Generator Room - Inergen, including piping, nozzles, extinguishant release panel, etc. | D185: Item | E185: Sum | G185: =F185 -> 0
B186: a | C186: Supply and install Gas cylinder 80L Inergen inert gas-300 bar | D186: No | E186: 10 | F186: incl.
B187: b | C187: Supply and install Gas cylinder bracket 80L | D187: No | E187: =E186 -> 10 | F187: incl.
B188: c | C188: Supply and install Ci IV8 Manosw-Plug | D188: No | E188: =E187 -> 10 | F188: incl.
B189: d | C189: Supply and install Manoswitch cable start kit | D189: m | E189: =1 -> 1 | F189: incl.
B190: e | C190: Supply and install Ci IS8 Solenoid Manual Actuator | D190: No | E190: 1 | F190: incl.
B191: f | C191: Supply and install Nozzle calibrated IN-32 NPT | D191: No | E191: 5 | F191: incl.
B192: g | C192: Supply and install CI MT 5 Manifold c/w orifice | D192: No | E192: 1 | F192: incl.
B193: h | C193: Supply and install Cry rail 5x80L 1600mm | D193: No | E193: 2 | F193: incl.
B194: i | C194: Supply and install Hose DN10-400 0.5m Ci Disc Elb | D194: No | E194: 0 | F194: incl.
B195: j | C195: Supply and install Hose DN10-400 1.0m Ci Disc Elb | D195: No | E195: =E186 -> 10 | F195: incl.
B196: k | C196: Supply and install conventional optical detector | D196: No | E196: =E191 -> 5 | F196: incl.
B197: l | C197: Supply and install conventional detector base | D197: No | E197: =E196 -> 5 | F197: incl.
B198: m | C198: Supply and install fire suppression panel | D198: No | E198: 1 | F198: incl.
B199: n | C199: Supply and install start/stop switch | D199: No | E199: 1 | F199: incl.
B200: o | C200: Supply and install beacon and sounder | D200: No | E200: 3 | F200: incl.
B201: p | C201: Supply and install fire beil | D201: No | E201: 1 | F201: incl.
B202: q | C202: Supply and install 100m fire cable 2 core 1.0mm | D202: No | E202: 1 | F202: incl.
B203: r | C203: Supply and install Gas pipes,Manifolds, three way valves and Two way valves as shown on tender drawings | D203: m | E203: 50 | F203: incl.
B205: =B185+0.001 -> 3.005 | C205: Supply & Install new system for Electrical Substation C & Transformer Rooms - Inergen, including piping, nozzles, extinguishant release panel, etc. | D205: Item | E205: Sum | F205: 0
B206: a | C206: Supply and install Gas cylinder 80L Inergen inert gas-300 bar | D206: No | E206: 5 | F206: incl.
B207: b | C207: Supply and install Gas cylinder bracket 80L | D207: No | E207: =E206 -> 5 | F207: incl.
B208: c | C208: Supply and install Ci IV8 Manosw-Plug | D208: No | E208: =E207 -> 5 | F208: incl.
B209: d | C209: Supply and install Manoswitch cable start kit | D209: m | E209: =1 -> 1 | F209: incl.
B210: e | C210: Supply and install Ci IS8 Solenoid Manual Actuator | D210: No | E210: 1 | F210: incl.
B211: f | C211: Supply and install Nozzle calibrated IN-32 NPT | D211: No | E211: 2 | F211: incl.
B212: g | C212: Supply and install CI MT 5 Manifold c/w orifice | D212: No | E212: 1 | F212: incl.
B213: h | C213: Supply and install Cry rail 5x80L 1600mm | D213: No | E213: 1 | F213: incl.
B214: i | C214: Supply and install Hose DN10-400 0.5m Ci Disc Elb | D214: No | E214: 0 | F214: incl.
B215: j | C215: Supply and install Hose DN10-400 1.0m Ci Disc Elb | D215: No | E215: =E206 -> 5 | F215: incl.
B216: k | C216: Supply and install conventional optical detector | D216: No | E216: =E211 -> 2 | F216: incl.
B217: l | C217: Supply and install conventional detector base | D217: No | E217: =E216 -> 2 | F217: incl.
B218: m | C218: Supply and install fire suppression panel | D218: No | E218: 1 | F218: incl.
B219: n | C219: Supply and install start/stop switch | D219: No | E219: 1 | F219: incl.
B220: o | C220: Supply and install beacon and sounder | D220: No | E220: 2 | F220: incl.
B221: p | C221: Supply and install fire beil | D221: No | E221: 1 | F221: incl.
B222: q | C222: Supply and install 100m fire cable 2 core 1.0mm | D222: No | E222: 1 | F222: incl.
B223: r | C223: Supply and install Gas pipes,Manifolds, three way valves and Two way valves as shown on tender drawings | D223: m | E223: 20 | F223: incl.
C232: Carried Forward to Summary Page
B234: ITEM NO | C234: DESCRIPTION | D234: UNIT | E234: QTY | F234: RATE | G234: AMOUNT
C235: SCHEDULE 4 :
B236: 4.000 | C236: FIRE PROTECTION EQUIPMENT & EMERGENCY EVACUATION
B241: =#REF!+0.001 ->  | C241: New - 25mm Dia Fire Hose Reels SANS approved and supplied and fitted including, stop valves,hose reel base, clamps,nozzle brackets,fixing brackets,etc including length of 30m connecting pipe per reel as per the specification and tender drawings. | D241: No | E241: =9+5+1+1 -> 16
B243: =B241+0.001 ->  | C243: Supply delivery and fitment of 100mm non-return valve and two gate valves as per tender specification and drawings. | D243: No | E243: 1
B245: =B243+0.001 ->  | C245: Fire Hose Reel Cabinet | D245: No | E245: 0 | G245: Rate Only
C247: HAND-HELD PORTABLE FIRE FIGHTING EQUIPMENT
B249: =B245+0.001 ->  | C249: Supply and install fire extinguishers SANS approved. Complete with meranti backing boards,steel bases,mounting brackets and wall anchors as per the tender drawings or detailed specifications. 5 kg CO2 | D249: No | E249: =1+2+3+2 -> 8
B251: =B249+0.001 ->  | C251: Supply and install fire extinguishers SANS approved. Complete with meranti backing boards,steel bases,mounting brackets and wall anchors as per the tender drawings or detailed specifications. 4.5 kg DCP | D251: No | E251: =1+2*E241 -> 33
B253: =B251+0.001 ->  | C253: Fire Extinguishers Cabinet for 5 kg CO2, Fire cabinets must be of a glass fibre with clear polycarbonate lids. | D253: No | E253: =E249 -> 8
B255: =B253+0.001 ->  | C255: Fire Extinguishers cabinet 4.5 kg DCP, Fire cabinets must be of a glass fibre with clear polycarbonate lids. | D255: No | E255: =E251 -> 33
B257: =B253+0.001 ->  | C257: Supply and install fire extinguishers SANS approved. Complete with meranti backing boards,steel bases,mounting brackets and wall anchors as per the tender drawings or detailed specifications. 10 kg CO2 | D257: No | E257: =3+2+2+1 -> 8
B259: =B257+0.001 ->  | C259: Supply and install fire extinguishers SANS approved. Complete with meranti backing boards,steel bases,mounting brackets and wall anchors as per the tender drawings or detailed specifications. 9.0 kg DCP | D259: No | E259: =3+1+1+1 -> 6
B261: =B259+0.001 ->  | C261: Fire Extinguishers Cabinet for 10 kg CO2, Fire cabinets must be of a glass fibre with clear polycarbonate lids. | D261: No | E261: =E257 -> 8
B263: =B261+0.001 ->  | C263: Fire Extinguishers cabinet 9.0 kg DCP, Fire cabinets must be of a glass fibre with clear polycarbonate lids. | D263: No | E263: =E259 -> 6
C265: Carried Forward to Next Page
B267: ITEM NO | C267: DESCRIPTION | D267: UNIT | E267: QTY | F267: RATE | G267: AMOUNT
C268: SCHEDULE 4 :
C269: =C236 -> FIRE PROTECTION EQUIPMENT & EMERGENCY EVACUATION
C271: Brought Forward from Previous Page
C273: FIRE PROTECTION EQUIPMENT & EMERGENCY EVACUATION
B275: =B263+0.001 ->  | C275: E1/E2, Size:190mm x 380mm (h x w) double sided Photoluminescent sign framed in natural anodised aluminium.Supply and Install with steel wire and ceiling tee hook/onto Mild steel bracket at 3.0meters from finished floor level/mechanically mounted onto wall/fixture | D275: No. | E275: =11+2+4+1+2+2+1+1 -> 24 | G275: =E275*F275 -> 0
B277: =B275+0.001 ->  | C277: E1/E2, Size:380mm x 190mm (h x w) Vertical Projecting double sided Photoluminescent sign framed in natural anodised aluminium.Supply and Install with steel wire and ceiling tee hook/onto Mild steel bracket at 3.0meters from finished floor level/mechanically mounted onto wall/fixture | D277: No. | E277: 0 | G277: Rate Only
B279: =B277+0.001 ->  | C279: E2, Size:190mm x 380mm (h x w) Photoluminescent double sided sign with back plate framed in natural anodised aluminium. Supply and Install with steel wire and ceiling tee hook/onto Mild steel bracket at 3.0meters from finished floor level/mechanically mounted onto wall/fixture | D279: No. | E279: =1+2 -> 3 | G279: =E279*F279 -> 0
B281: =B279+0.001 ->  | C281: E1, Size:190mm x 380mm (h x w) double sided Photoluminescent sign with back plate framed in natural anodised aluminium.Supply and Install with steel wire and ceiling tee hook/onto Mild steel bracket at 3.0meters from finished floor level/mechanically mounted onto wall/fixture | D281: No. | E281: =16+1 -> 17 | G281: 0
B283: =B281+0.001 ->  | C283: E3, Size:190mm x 380mm (h x w) double sided Photoluminescent sign with back plate framed in natural anodised aluminium frame. Supply and Install with steel wire and ceiling tee hook/onto Mild steel bracket at 3.0meters from finished floor level/mechanically mounted onto wall/fixture | D283: No. | E283: =16+6+2+4+2+3+3+2+1 -> 39 | G283: 0
B285: =B283+0.001 ->  | C285: E16/E17, Size:290mm x 870mm (h x w) double sided Photoluminescent sign framed in natural anodised aluminium. Supply and Install with steel wire and ceiling tee hook/onto Mild steel bracket at 3.0meters from finished floor level/mechanically mounted onto wall/fixture | D285: No. | E285: =4 -> 4 | G285: 0
B287: =B285+0.001 ->  | C287: E13/E14, Size:190mm x 380mm (h x w) double sided Photoluminescent sign framed in natural anodised aluminium. Supply and Install with steel wire and ceiling tee hook/onto Mild steel bracket at 3.0meters from finished floor level/mechanically mounted onto wall/fixture | D287: No. | E287: 4 | G287: =E287*F287 -> 0
B289: =B287+0.001 ->  | C289: E13, Size:190mm x 380mm (h x w) Photoluminescent double sided sign with back plate framed in natural anodised aluminium frame. Supply and Install with steel wire and ceiling tee hook/onto Mild steel bracket at 3.0meters from finished floor level/mechanically mounted onto wall/fixture | D289: No. | E289: 0 | G289: Rate Only
B291: =B289+0.001 ->  | C291: F2/F3, Size:190mm x 760mm (h x w) double sided Photoluminescent sign framed in natural anodised aluminium. Supply and Install with steel wire and ceiling tee hook/onto Mild steel bracket at 3.0meters from finished floor level/mechanically mounted onto wall/fixture | D291: No. | E291: 0 | G291: Rate Only
B293: =B291+0.001 ->  | C293: F1, Size:190mm x 760mm (h x w) Photoluminescent double sided sign with back plate framed in natural anodised aluminium. Supply and Install with steel wire and ceiling tee hook/onto Mild steel bracket at 3.0meters from finished floor level/mechanically mounted onto wall/fixture | D293: No. | E293: 0 | G293: Rate Only
B295: =B293+0.001 ->  | C295: F5/F6, Size:190mm x 570mm (h x w) double sided Photoluminescent sign framed in natural anodised aluminium. Supply and Install with steel wire and ceiling tee hook/onto Mild steel bracket at 3.0meters from finished floor level/mechanically mounted onto wall/fixture | D295: No. | E295: 0 | G295: Rate Only
B297: =B295+0.001 ->  | C297: F5, Size:190mm x 570mm (h x w) Photoluminescent double sided sign with back plate framed in natural anodised aluminium frame. Supply and Install with steel wire and ceiling tee hook/onto Mild steel bracket at 3.0meters from finished floor level/mechanically mounted onto wall/fixture | D297: No. | E297: 0 | G297: Rate Only
B299: =B297+0.001 ->  | C299: F4, Size:190mm x 570mm (h x w) double sided Photoluminescent sign with back plate framed in natural anodised aluminium. Supply and Install with steel wire and ceiling tee hook/onto Mild steel bracket at 3.0meters from finished floor level/mechanically mounted onto wall/fixture | D299: No. | E299: =E241 -> 16 | G299: =F299*E299 -> 0
C302: Carried Forward to Next Page
B304: ITEM NO | C304: DESCRIPTION | D304: UNIT | E304: QUANTITY | F304: RATE | G304: AMOUNT
C305: SCHEDULE 4 :
C306: =C236 -> FIRE PROTECTION EQUIPMENT & EMERGENCY EVACUATION
C308: Brought Forward from Previous Page
C310: FIRE PROTECTION EQUIPMENT, FIRE WALLS & EMERGENCY EVACUATION LAYOUT - CONTINUED
G311: Rate Only
B312: =B299+0.001 ->  | C312: F18/F21, Size:190mm x 380mm (h x w) double sided Photoluminescent sign framed in natural anodised aluminium.Supply and Install with steel wire and ceiling tee hook/onto Mild steel bracket at 3.0meters from finished floor level/mechanically mounted onto wall/fixture | D312: No. | E312: 3 | G312: =E312*F312 -> 0
B314: =B312+0.001 ->  | C314: F15, Size:190mm x 380mm (h x w) Photoluminescent double sided sign with back plate framed in natural anodised aluminium frame. Supply and Install with steel wire and ceiling tee hook/onto Mild steel bracket at 3.0meters from finished floor level/mechanically mounted onto wall/fixture | D314: No. | E314: 4 | G314: =E314*F314 -> 0
B316: =B314+0.001 ->  | C316: F20/F17, Size:190mm x 380mm (h x w) Photoluminescent double sided sign with back plate framed in natural anodised aluminium frame. Supply and Install with steel wire and ceiling tee hook/onto Mild steel bracket at 3.0meters from finished floor level/mechanically mounted onto wall/fixture | D316: No. | E316: 0 | G316: Rate Only
B318: =B316+0.001 ->  | C318: F14, Size:190mm x 380mm (h x w) Photoluminescent double sided sign with back plate framed in natural anodised aluminium frame. Supply and Install with steel wire and ceiling tee hook/onto Mild steel bracket at 3.0meters from finished floor level/mechanically mounted onto wall/fixture | D318: No. | E318: 0 | G318: Rate Only
B320: =B318+0.001 ->  | C320: F16/F19, Size:190mm x 380mm (h x w) double sided Photoluminescent sign framed in natural anodised aluminium. Supply and Install with steel wire and ceiling tee hook/onto Mild steel bracket at 3.0meters from finished floor level/mechanically mounted onto wall/fixture | D320: No. | E320: 0 | G320: Rate Only
B322: =B320+0.001 ->  | C322: F13, Size:190mm x 380mm (h x w) double sided Photoluminescent sign without back plate and framed in natural anodised aluminium. Supply and Install with steel wire and ceiling tee hook/onto Mild steel bracket at 3.0meters from finished floor level/mechanically mounted onto wall/fixture | D322: No. | E322: 23 | G322: =E322*F322 -> 0
B324: =B322+0.001 ->  | C324: Emergency Assembly Point (Custom sign to industry standards) Size:1000mm x 1000mm (h x w), three sided vinyl sign without back plate (0.8) and mild steel frame of square tubing (30 x 30mm) mounted onto Diameter 80mm pole. Bottom of sign to be at least 2.4m from finishe floor level and mounted with 4 M10 rawl bolts. Supply and Install the entire scope. | D324: No. | E324: 0 | G324: Rate Only
B326: =B324+0.001 ->  | C326: F41, Size:290mm x 290mm (h x w) double sided Photoluminescent sign without back plate and framed in natural anodised aluminium. Supply and Install onto column at 2.5meters from finished floor level. | D326: No. | E326: =6+5 -> 11 | G326: =E326*F326 -> 0
B328: =B326+0.001 ->  | C328: F39, Size:190mm x 190mm (h x w) double sided Photoluminescent sign framed in natural anodised aluminium frame. Supply and Install with steel wire and ceiling tee hook OR mechanically mounted onto wall/fixture at lift shafts | D328: No. | E328: 4 | G328: 0
C351: Carried Forward to Next Page
B353: ITEM NO | C353: DESCRIPTION
C354: SCHEDULE 3 :
B355: Schedule | C355: FINAL SUMMARY | G355: AMOUNT
B356: No
B359: 1.000 | C359: =C4 -> PRELIMINARY & GENERAL ITEMS | D359: Page | E359: -1- | G359: =F359 -> 0
B361: 2.000 | C361: =C74 -> FIRE DETECTION INSTALLATIONS | D361: Page | E361: -2- | G361: =F361 -> 0
B363: 3.000 | C363: =C175 -> SERVICE & REPAIR INERT FIRE SUPPRESSION SYSTEMS | D363: Page | E363: -3- | G363: =F363 -> 0
B365: 4.000 | C365: =C236 -> FIRE PROTECTION EQUIPMENT & EMERGENCY EVACUATION | D365: Page | E365: -6- | G365: =F365 -> 0
C367: CONTINGENCIES (10%) | D367: Item | E367: 1 | G367: =F367 -> 0 | I367: 10%
C421: CARRIED TO FORM OF TENDER (EXCL. 15% VAT) | E421: R | G421: =SUM(G359:G419) -> 0
